fUSD/lending_fUSD_20260217
["ID","MTS","AMOUNT","RATE_DAILY","PERIOD"]
[405810640,1771330283809,-212.57143527,0.00039341,7]
[405810641,1771330283818,-1596.0,0.00039342,60]
[405810642,1771330283828,-150.0,0.00039359,7]
[405810643,1771330283838,-523.736781,0.00039383,120]
[405810644,1771330283847,-1596.0,0.00039397,60]
[405810645,1771330283857,-1209.0,0.000394,2]
[405810646,1771330283867,-2452.0,0.000394,2]
[405810647,1771330283877,-5973.0,0.000394,2]
[405810648,1771330283887,-150.0,0.0003941,7]
[405810649,1771330283897,-150.0,0.00039437,7]
[405810650,1771330283906,-150.0,0.00039449,7]
[405810651,1771330283916,-1596.0,0.00039452,60]
[405810652,1771330283925,-400.0,0.0003947,2]
[405810653,1771330283934,-2231.7,0.00039484,30]
[405810654,1771330283943,-236.994,0.00039488,30]
[405810655,1771330283953,-212.57143527,0.00039488,7]
[405810656,1771330283963,-1024.52,0.00039495,30]
[405810657,1771330283972,-150.0,0.00039505,7]
[405810658,1771330283981,-150.0,0.00039505,7]
[405810659,1771330283992,-1596.0,0.00039507,60]
[405810660,1771330284002,-150.0,0.00039508,7]
[405810661,1771330284012,-150.0,0.00039517,7]
[405810662,1771330284022,-150.0,0.00039525,7]
[405810663,1771330284031,-152.0,0.00039537,13]
[405810664,1771330284041,-1596.0,0.00039561,60]
[405810665,1771330284052,-150.0,0.00039579,7]
[405810666,1771330284061,-2000.0,0.000396,2]
[405810667,1771330284071,-1000.0,0.000396,2]
[405810668,1771330284081,-561.04,0.000396,120]
[405810669,1771330284091,-1603.73168422,0.00039616,60]
[405810670,1771330284101,-150.0,0.00039636,7]
[405810671,1771330284111,-212.57143527,0.00039636,7]
[405810672,1771330284121,-150.0,0.00039636,7]
[405810673,1771330284137,-236.994,0.00039688,30]
[405810674,1771330284148,-150.0,0.00039691,7]
[405810675,1771330284157,-150.0,0.00039695,7]
[405810676,1771330284167,-206.30397033,0.00039696,120]
[405810677,1771330284179,-46020.94975831,0.000397,2]
[405810678,1771330284190,-150.0,0.000397,7]
[405810679,1771330284201,-150.0,0.00039715,7]
[405810680,1771330284211,-2313.83,0.00039726,120]
[405810681,1771330284221,-501.0,0.00039732,22]
[405810682,1771330284230,-150.0,0.00039735,7]
[405810683,1771330284240,-150.0,0.00039749,7]
[405810684,1771330284250,-212.57143527,0.00039784,7]
[405810685,1771330284260,-1000.0,0.000398,120]
[405810686,1771330284270,-1000.0,0.000398,120]
[405810687,1771330284279,-1000.0,0.000398,120]
[405810688,1771330284288,-1000.0,0.000398,120]
[405810689,1771330284298,-1000.0,0.000398,120]
[405810690,1771330284308,-150.0,0.00039857,7]
[405810691,1771330284318,-150.0,0.00039873,7]
[405810692,1771330284327,-150.0,0.00039884,2]
[405810693,1771330284336,-150.0,0.00039884,2]
[405810694,1771330284346,-198.33606715,0.00039884,2]
[405810695,1771330284356,-236.994,0.00039888,30]
[405810696,1771330284366,-150.0,0.00039892,7]
[405810697,1771330284376,-477.56,0.000399,120]
[405810698,1771330284386,-1000.0,0.000399,120]
[405810699,1771330284395,-150.0,0.00039919,7]
[405810700,1771330284405,-150.0,0.00039925,7]
[405810701,1771330284414,-212.57143527,0.00039931,7]
[405810702,1771330284424,-81184.18295653,0.0003998,2]
[405810703,1771330284434,-439.65193535,0.00039984,2]
[405810704,1771330284443,-500.0,0.00039999,31]
[405810705,1771330284454,-500.0,0.00039999,31]
[405810706,1771330284464,-500.0,0.00039999,31]
[405810707,1771330284473,-500.0,0.00039999,31]
[405810708,1771330284483,-500.0,0.00039999,31]
[405810709,1771330284493,-500.0,0.00039999,31]
[405810710,1771330284503,-500.0,0.00039999,31]
[405810711,1771330284513,-500.0,0.00039999,31]
[405810712,1771330284522,-500.0,0.00039999,31]
[405810713,1771330284532,-500.0,0.00039999,31]
[405810714,1771330284541,-500.0,0.00039999,31]
[405810715,1771330284551,-500.0,0.00039999,31]
[405810716,1771330284560,-500.0,0.00039999,31]
[405810717,1771330284569,-500.0,0.00039999,31]
[405810718,1771330284579,-500.0,0.00039999,31]
[405810719,1771330284588,-500.0,0.00039999,31]
[405810720,1771330284598,-500.0,0.00039999,31]
[405810721,1771330284607,-500.0,0.00039999,31]
[405810722,1771330284617,-500.0,0.00039999,31]
[405810723,1771330284626,-500.0,0.00039999,31]
[405810724,1771330284636,-500.0,0.00039999,31]
[405810725,1771330284645,-500.0,0.00039999,31]
[405810726,1771330284655,-500.0,0.00039999,31]
[405810727,1771330284665,-500.0,0.00039999,31]
[405810728,1771330284675,-500.0,0.00039999,31]
[405810729,1771330284684,-500.0,0.00039999,31]
[405810730,1771330284693,-500.0,0.00039999,31]
[405810731,1771330284703,-500.0,0.00039999,31]
[405810732,1771330284712,-500.0,0.00039999,31]
[405810733,1771330284723,-500.0,0.00039999,31]
[405810734,1771330284732,-500.0,0.00039999,31]
[405810735,1771330284742,-500.0,0.00039999,31]
[405810736,1771330284752,-500.0,0.00039999,31]
[405810737,1771330284762,-223.33520791,0.00039999,31]
[405810738,1771330284771,-500.0,0.00039999,31]
[405810739,1771330284989,-500.0,0.00039999,31]
[405810740,1771330284999,-354.72981166,0.00039999,31]
[405810741,1771330285009,-500.0,0.00039999,31]
[405810742,1771330285019,-500.0,0.00039999,31]
[405810743,1771330285028,-500.0,0.00039999,31]
[405810744,1771330285037,-456.64964048,0.00039999,7]
[405810745,1771330285047,-343.83508276,0.00039999,31]
[405810746,1771330285056,-397.65934106,0.00039999,31]
[405810747,1771330285067,-500.0,0.00039999,31]
[405810748,1771330285076,-500.0,0.00039999,31]
[405810749,1771330285086,-444.44995058,0.00039999,31]
[405810750,1771330285096,-500.0,0.00039999,31]
[405810751,1771330285105,-500.0,0.00039999,31]
[405810752,1771330285115,-500.0,0.00039999,31]
[405810753,1771330285125,-191.0,0.0004,120]
[405810754,1771330285139,-2514.38994029,0.0004,120]
[405810755,1771330285148,-152.0,0.0004,120]
[405810756,1771330285158,-1999.15330172,0.0004,30]
[405810757,1771330285167,-4113.05747689,0.0004,2]
[405810758,1771330285178,-600.2843607,0.0004,2]
[405810759,1771330285187,-10698.11912862,0.0004,2]
[405810760,1771330285198,-1000.0,0.0004,2]
[405810761,1771330285207,-1000.0,0.0004,120]
[405810762,1771330285217,-1000.0,0.0004,120]
[405810763,1771330285227,-5036.61879677,0.0004,4]
[405810764,1771330285236,-1000.0,0.0004,120]
[405810765,1771330285246,-668.21278848,0.0004,120]
[405810766,1771330285255,-500.0,0.0004,120]
[405810767,1771330285264,-3257.5244092,0.0004,2]
[405810768,1771330285278,-2783.37,0.0004,2]
[405810769,1771330285289,-602.0,0.0004,2]
[405810770,1771330285301,-793.1136,0.0004,2]
[405810771,1771330285312,-1157.9919908,0.0004,2]
[405810772,1771330285322,-483.5961954,0.0004,120]
[405810773,1771330285331,-2466.54,0.0004,30]
[405810774,1771330285341,-27600.0,0.0004,120]
[405810775,1771330285351,-500.0,0.0004,30]
[405810776,1771330285360,-160.0,0.0004,7]
[405810777,1771330285370,-4050.0,0.0004,20]
[405810778,1771330285379,-1000.0,0.0004,120]
[405810779,1771330285388,-500.0,0.0004,120]
[405810780,1771330285398,-42147.80869575,0.0004,120]
[405810781,1771330285407,-501.18289883,0.0004,2]
[405810782,1771330285416,-391.03648024,0.0004,2]
[405810783,1771330285426,-1201.36539936,0.0004,2]
[405810784,1771330338970,216.0,9.85e-05,4]
[405810787,1771330377631,-500.0,7.318e-05,2]
[405810788,1771330377655,-700.0,7.318e-05,2]
[405810789,1771330411007,3616.30292148,7.2e-05,3]
[405810790,1771330411057,5176.13923615,7.2e-05,3]
[405810791,1771330411113,5696.08467438,7.2e-05,3]
[405810792,1771330411168,6216.0301126,7.2e-05,3]
[405810793,1771330444620,-300.0,7.317e-05,2]
[405810794,1771330444644,-116700.0,7.318e-05,2]
[405810795,1771330472401,-150.0,7.291e-05,2]
[405810796,1771330472452,450.0,0.00011179,7]
[405810797,1771330487395,-210.8,7.3e-05,2]
[405810798,1771330502488,-300.0,7.316e-05,2]
[405810799,1771330502516,-1200.0,7.316e-05,2]
[405810800,1771330503841,150.0,7.316e-05,2]
[405810801,1771330505069,1338.69920235,7.309e-05,2]
[405810802,1771330550098,1276.28087809,7.309e-05,2]
[405810803,1771330587432,5667.42728067,7.2e-05,3]
[405810804,1771330587469,8426.140921,7.2e-05,3]
[405810805,1771330587518,7046.78410084,7.2e-05,3]
[405810806,1771330587572,9805.49774117,7.2e-05,3]
[405810807,1771330587637,9805.49774117,7.2e-05,3]
[405810808,1771330621312,300.0,7.316e-05,2]
[405810809,1771330635700,8423.72912191,7.218e-05,2]
[405810810,1771330635725,10000.01,7.218e-05,2]
[405810811,1771330635750,10000.01,7.218e-05,2]
[405810812,1771330635773,10000.01,7.218e-05,2]
[405810813,1771330635797,10000.01,7.218e-05,2]
[405810814,1771330635820,10000.01,7.218e-05,2]
[405810815,1771330635845,10000.01,7.218e-05,2]
[405810816,1771330635868,10000.01,7.218e-05,2]
[405810817,1771330635892,10000.01,7.218e-05,2]
[405810818,1771330682919,150.0,7.217e-05,2]
[405810819,1771330700472,151.0,9.781e-05,4]
[405810820,1771330712732,-7592.5040697,7.218e-05,2]
[405810824,1771330748545,469.60528761,7.217e-05,2]
[405810825,1771330750604,593.17011246,7.217e-05,2]
[405810826,1771330750926,388.29140102,7.217e-05,2]
[405810827,1771330750961,593.17011246,7.217e-05,2]
[405810828,1771330751030,593.17011246,7.217e-05,2]
[405810829,1771330751090,593.17011246,7.217e-05,2]
[405810830,1771330751129,593.17011246,7.217e-05,2]
[405810831,1771330751162,593.17011246,7.217e-05,2]
[405810832,1771330751195,433.09263661,7.217e-05,2]
[405810833,1771330751217,160.07747585,7.217e-05,2]
[405810834,1771330751257,593.17011246,7.217e-05,2]
[405810835,1771330751292,593.17011246,7.217e-05,2]
[405810836,1771330751326,593.17011246,7.217e-05,2]
[405810837,1771330751360,593.17011246,7.217e-05,2]
[405810838,1771330751398,593.17011246,7.217e-05,2]
[405810839,1771330751436,593.17011246,7.217e-05,2]
[405810840,1771330751478,593.17011246,7.217e-05,2]
[405810841,1771330751512,593.17011246,7.217e-05,2]
[405810842,1771330751546,94.57162447,7.217e-05,2]
[405810843,1771330751569,498.59848799,7.217e-05,2]
[405810844,1771330751611,593.17011246,7.217e-05,2]
[405810845,1771330751655,593.17011246,7.217e-05,2]
[405810846,1771330751689,593.17011246,7.217e-05,2]
[405810847,1771330751724,593.17011246,7.217e-05,2]
[405810848,1771330751757,593.17011246,7.217e-05,2]
[405810849,1771330751790,593.17011246,7.217e-05,2]
[405810850,1771330751827,593.17011246,7.217e-05,2]
[405810851,1771330751864,349.22072479,7.217e-05,2]
[405810852,1771330751889,243.94938767,7.217e-05,2]
[405810853,1771330751930,593.17011246,7.217e-05,2]
[405810854,1771330751964,593.17011246,7.217e-05,2]
[405810855,1771330751998,593.17011246,7.217e-05,2]
[405810856,1771330752032,593.17011246,7.217e-05,2]
[405810857,1771330752064,593.17011246,7.217e-05,2]
[405810858,1771330752107,593.17011246,7.217e-05,2]
[405810859,1771330752144,593.17011246,7.217e-05,2]
[405810860,1771330752181,593.17011246,7.217e-05,2]
[405810861,1771330752214,10.69971265,7.217e-05,2]
[405810862,1771330752239,582.47039981,7.217e-05,2]
[405810863,1771330752275,593.17011246,7.217e-05,2]
[405810864,1771330752312,593.17011246,7.217e-05,2]
[405810865,1771330752353,593.17011246,7.217e-05,2]
[405810866,1771330752386,593.17011246,7.217e-05,2]
[405810867,1771330752425,593.17011246,7.217e-05,2]
[405810868,1771330752459,593.17011246,7.217e-05,2]
[405810869,1771330752494,593.17011246,7.217e-05,2]
[405810870,1771330752530,265.34881297,7.217e-05,2]
[405810871,1771330752556,327.82129949,7.217e-05,2]
[405810872,1771330752592,593.17011246,7.217e-05,2]
[405810873,1771330752631,593.17011246,7.217e-05,2]
[405810874,1771330752666,593.17011246,7.217e-05,2]
[405810875,1771330752700,593.17011246,7.217e-05,2]
[405810876,1771330752738,593.17011246,7.217e-05,2]
[405810877,1771330752776,593.17011246,7.217e-05,2]
[405810878,1771330752818,593.17011246,7.217e-05,2]
[405810879,1771330761382,519.99791329,7.217e-05,2]
[405810880,1771330761411,221.46472728,7.217e-05,2]
[405810881,1771330761452,741.46264057,7.217e-05,2]
[405810882,1771330761493,741.46264057,7.217e-05,2]
[405810883,1771330761533,741.46264057,7.217e-05,2]
[405810884,1771330761577,741.46264057,7.217e-05,2]
[405810885,1771330761619,741.46264057,7.217e-05,2]
[405810886,1771330761664,741.46264057,7.217e-05,2]
[405810887,1771330761703,329.7694293,7.217e-05,2]
[405810888,1771330761729,411.69321127,7.217e-05,2]
[405810889,1771330761772,741.46264057,7.217e-05,2]
[405810890,1771330761811,741.46264057,7.217e-05,2]
[405810891,1771330761851,741.46264057,7.217e-05,2]
[405810892,1771330761891,741.46264057,7.217e-05,2]
[405810893,1771330761936,741.46264057,7.217e-05,2]
[405810894,1771330762021,741.46264057,7.217e-05,2]
[405810895,1771330762059,139.54094531,7.217e-05,2]
[405810896,1771330762088,601.92169526,7.217e-05,2]
[405810897,1771330762127,741.46264057,7.217e-05,2]
[405810898,1771330762168,741.46264057,7.217e-05,2]
[405810899,1771330762748,741.46264057,7.217e-05,2]
[405810900,1771330762847,741.46264057,7.217e-05,2]
[405810901,1771330762885,741.46264057,7.217e-05,2]
[405810902,1771330762925,690.77510189,7.217e-05,2]
[405810903,1771330762950,50.68753868,7.217e-05,2]
[405810904,1771330762983,741.46264057,7.217e-05,2]
[405810905,1771330763017,741.46264057,7.217e-05,2]
[405810906,1771330763061,741.46264057,7.217e-05,2]
[405810907,1771330763095,741.46264057,7.217e-05,2]
[405810908,1771330763129,741.46264057,7.217e-05,2]
[405810909,1771330763182,741.46264057,7.217e-05,2]
[405810910,1771330763220,500.5466179,7.217e-05,2]
[405810911,1771330763245,240.91602267,7.217e-05,2]
[405810912,1771330763290,741.46264057,7.217e-05,2]
[405810913,1771330763325,741.46264057,7.217e-05,2]
[405810914,1771330763366,741.46264057,7.217e-05,2]
[405810915,1771330763410,741.46264057,7.217e-05,2]
[405810916,1771330763447,741.46264057,7.217e-05,2]
[405810917,1771330801537,300.0,7.217e-05,2]
[405810918,1771330801581,751.78077448,7.217e-05,2]
[405810919,1771330801602,448.21922552,7.217e-05,2]
[405810920,1771330804091,211.0,7.218e-05,2]
[405810921,1771330861266,300.0,7.217e-05,2]
[405810922,1771330863038,150.0,7.217e-05,2]
[405810923,1771330882428,500.0,7.217e-05,2]
[405810924,1771330882461,500.0,7.217e-05,2]
[405810925,1771330882496,500.0,7.217e-05,2]
[405810926,1771330882530,500.0,7.217e-05,2]
[405810927,1771330882572,500.0,7.217e-05,2]
[405810928,1771330882604,500.0,7.217e-05,2]
[405810929,1771330882637,500.0,7.217e-05,2]
[405810930,1771330882670,390.79077448,7.217e-05,2]
[405810931,1771330882694,109.20922552,7.217e-05,2]
[405810932,1771330882728,500.0,7.217e-05,2]
[405810933,1771330882780,500.0,7.217e-05,2]
[405810934,1771330882816,500.0,7.217e-05,2]
[405810935,1771330882886,238.9208379,7.217e-05,2]
[405810936,1771330893164,3151.87993658,7.074e-05,2]
[405810937,1771330893185,1154.60806342,7.074e-05,2]
[405810938,1771330894244,389.273,7.074e-05,2]
[405810939,1771330896340,500.0,7.217e-05,2]
[405810941,1771330921726,300.0,7.217e-05,2]
[405810942,1771330949484,2656.12893658,7.118e-05,2]
[405810943,1771330949508,5000.01,7.118e-05,2]
[405810944,1771330949530,5000.01,7.118e-05,2]
[405810945,1771330949553,5000.01,7.118e-05,2]
[405810946,1771330949577,5000.01,7.118e-05,2]
[405810947,1771330949599,5000.01,7.118e-05,2]
[405810948,1771330949621,5000.01,7.118e-05,2]
[405810949,1771330949643,5000.01,7.118e-05,2]
[405810950,1771330949665,5000.01,7.118e-05,2]
[405810951,1771330949687,5000.01,7.118e-05,2]
[405810952,1771330956570,-5000.01,7.118e-05,2]
[405810953,1771330956702,-5000.01,7.118e-05,2]
[405810954,1771330956845,-5000.01,7.118e-05,2]
[405810955,1771330956926,-5000.01,7.118e-05,2]
[405810956,1771330957032,-5000.01,7.118e-05,2]
[405810957,1771330957137,-5000.01,7.118e-05,2]
[405810958,1771330990084,2811.0,7.108e-05,2]
[405810959,1771331076482,275.22486912,8.301e-05,5]
[405810960,1771331209862,-480.0,7.117e-05,2]
[405810961,1771331222905,150.0,7.117e-05,2]
[405810966,1771331247486,1062.34374872,7.117e-05,2]
[405810967,1771331247548,1062.34374872,7.117e-05,2]
[405810968,1771331247581,1062.34374872,7.117e-05,2]
[405810969,1771331247703,1062.34374872,7.117e-05,2]
[405810970,1771331247734,1062.34374872,7.117e-05,2]
[405810971,1771331247789,1062.34374872,7.117e-05,2]
[405810972,1771331247896,1062.34374872,7.117e-05,2]
[405810974,1771331254701,-2189.01,7.118e-05,2]
[405810975,1771331254915,-5000.01,7.118e-05,2]
[405810976,1771331266589,-5000.01,7.118e-05,2]
[405810977,1771331266696,-5000.01,7.118e-05,2]
[405810978,1771331267894,2563.60375896,7.018e-05,2]
[405810979,1771331267917,10000.01,7.018e-05,2]
[405810980,1771331267940,10000.01,7.018e-05,2]
[405810981,1771331267963,10000.01,7.018e-05,2]
[405810982,1771331267987,10000.01,7.018e-05,2]
[405810983,1771331268009,10000.01,7.018e-05,2]
[405810984,1771331268031,10000.01,7.018e-05,2]
[405810985,1771331268054,10000.01,7.018e-05,2]
[405810986,1771331268078,10000.01,7.018e-05,2]
[405810987,1771331268101,10000.01,7.018e-05,2]
[405810988,1771331289543,10000.01,6.986e-05,2]
[405810989,1771331289567,10000.01,6.986e-05,2]
[405810990,1771331289589,4154.98,6.986e-05,2]
[405810991,1771331419496,3402.89123404,6.9e-05,3]
[405810992,1771331419550,5354.62597447,6.9e-05,3]
[405810993,1771331419608,4866.69228937,6.9e-05,3]
[405810994,1771331419650,5842.55965958,6.9e-05,3]
[405810995,1771331422082,169.0,7.018e-05,3]
[405811000,1771331436473,-1200.0,7.017e-05,2]
[405811002,1771331436482,-150.0,7.017e-05,2]
[405811004,1771331436493,-38802.2558976,7.018e-05,2]
[405811005,1771331436504,-1254.41808677,7.018e-05,2]
[405811024,1771331437777,-301.76454383,7.018e-05,2]
[405811025,1771331437789,-487.18075526,7.018e-05,2]
[405811026,1771331437799,-583.72885539,7.018e-05,2]
[405811027,1771331437810,-925.48761476,7.018e-05,2]
[405811028,1771331437835,-3365081.47048743,7.018e-05,2]
[405811029,1771331437845,-250.0,7.143e-05,2]
[405811030,1771331437855,-8326.41009071,7.143e-05,2]
[405811031,1771331437864,-10040.43634857,7.143e-05,2]
[405811032,1771331437873,-250.0,7.294e-05,2]
[405811033,1771331437883,-1000.0,7.517e-05,2]
[405811034,1771331437892,-170.39,7.7e-05,2]
[405811035,1771331437902,-1680.0,7.719e-05,2]
[405811036,1771331437912,-255.0,7.719e-05,2]
[405811037,1771331437921,-250.0,7.72e-05,2]
[405811038,1771331437931,-392.58581832,7.888e-05,2]
[405811039,1771331437940,-150.99,7.94e-05,2]
[405811040,1771331437949,-339.18585258,8e-05,2]
[405811041,1771331437958,-9999.99,8e-05,2]
[405811042,1771331437968,-9999.99,8e-05,2]
[405811043,1771331437977,-999.99,8e-05,2]
[405811044,1771331437987,-346.58,8e-05,2]
[405811045,1771331437996,-14638.92,8e-05,2]
[405811046,1771331438005,-9999.99,8e-05,2]
[405811048,1771331438014,-403.2,8e-05,2]
[405811050,1771331438023,-9999.99,8e-05,2]
[405811052,1771331438033,-150.99,8e-05,2]
[405811054,1771331438042,-299.99,8e-05,2]
[405811056,1771331438051,-420.48,8e-05,2]
[405811058,1771331438060,-743.66,8.144e-05,2]
[405811060,1771331438069,-545.792757,8.178e-05,2]
[405811063,1771331438078,-813.0,8.18e-05,2]
[405811065,1771331438088,-359.232122,8.219e-05,2]
[405811066,1771331438097,-1249.146837,8.219e-05,2]
[405811069,1771331438107,-150.0,8.219e-05,2]
[405811071,1771331438116,-274.257356,8.219e-05,2]
[405811073,1771331438125,-398.514713,8.219e-05,2]
[405811074,1771331438134,-522.77207,8.219e-05,2]
[405811077,1771331438144,-647.029427,8.219e-05,2]
[405811079,1771331438152,-771.286784,8.219e-05,2]
[405811081,1771331438162,-895.544141,8.219e-05,2]
[405811083,1771331438171,-1019.801498,8.219e-05,2]
[405811085,1771331438180,-9150.74,8.269e-05,2]
[405811087,1771331438189,-420.48,8.274e-05,2]
[405811089,1771331438199,-399.0,8.462e-05,2]
[405811091,1771331438209,-2351.0,8.491e-05,2]
[405811093,1771331438218,-369.0,8.491e-05,2]
[405811095,1771331438227,-420.48,8.548e-05,2]
[405811097,1771331438236,-38674.68,8.666e-05,2]
[405811099,1771331438246,-380.0,8.791e-05,2]
[405811101,1771331438255,-362.0,8.808e-05,2]
[405811103,1771331438265,-420.48,8.822e-05,2]
[405811105,1771331438274,-453.0,8.826e-05,2]
[405811107,1771331438283,-365.0,9.072e-05,2]
[405811109,1771331438292,-420.49490725,9.096e-05,2]
[405811111,1771331438302,-1222.0,9.129e-05,2]
[405811113,1771331438311,-515.0,9.147e-05,2]
[405811115,1771331438322,-462.0,9.156e-05,2]
[405811117,1771331438331,-1618.0,9.166e-05,2]
[405811119,1771331438340,-1892.0,9.175e-05,2]
[405811121,1771331438349,-500.0,9.175e-05,2]
[405811123,1771331438359,-385.14970002,9.238e-05,2]
[405811124,1771331438369,-250.0,9.272e-05,2]
[405811126,1771331438378,-1561.433547,9.284e-05,2]
[405811128,1771331438387,-3292.0,9.34e-05,2]
[405811130,1771331438396,-300.0,9.394e-05,2]
[405811132,1771331438406,-500.0,9.449e-05,2]
[405811134,1771331438415,-1491.0,9.82e-05,2]
[405811136,1771331438424,-203.51151155,0.0001,2]
[405811138,1771331438434,-500.0,0.0001,2]
[405811140,1771331438444,-151.0,0.0001,2]
[405811142,1771331438456,-500.0,0.0001,2]
[405811144,1771331438466,-151.0,0.0001,2]
[405811146,1771331438475,-500.0,0.0001,2]
[405811148,1771331438487,-151.0,0.0001,2]
[405811150,1771331438497,-500.0,0.0001,2]
[405811152,1771331438507,-151.0,0.0001,2]
[405811154,1771331438516,-500.0,0.0001,2]
[405811156,1771331438527,-151.0,0.0001,2]
[405811157,1771331438538,-500.0,0.0001,2]
[405811158,1771331438547,-151.0,0.0001,2]
[405811159,1771331438557,-500.0,0.0001,2]
[405811160,1771331438566,-151.0,0.0001,2]
[405811161,1771331438575,-500.0,0.0001,2]
[405811162,1771331438585,-151.0,0.0001,2]
[405811163,1771331438595,-500.0,0.0001,2]
[405811164,1771331438604,-151.0,0.0001,2]
[405811165,1771331438614,-500.0,0.0001,2]
[405811166,1771331438623,-151.0,0.0001,2]
[405811167,1771331438633,-500.0,0.0001,2]
[405811168,1771331438643,-151.0,0.0001,2]
[405811169,1771331438653,-500.0,0.0001,2]
[405811170,1771331438662,-500.0,0.0001,2]
[405811171,1771331438671,-500.0,0.0001,2]
[405811172,1771331438681,-500.0,0.0001,2]
[405811173,1771331438691,-500.0,0.0001,2]
[405811174,1771331438700,-500.0,0.0001,2]
[405811175,1771331438709,-500.0,0.0001,2]
[405811176,1771331438719,-500.0,0.0001,2]
[405811177,1771331438729,-500.0,0.0001,2]
[405811178,1771331438739,-500.0,0.0001,2]
[405811179,1771331438748,-500.0,0.0001,2]
[405811180,1771331438758,-151.0,0.0001,2]
[405811181,1771331438767,-151.0,0.0001,2]
[405811182,1771331438777,-151.0,0.0001,2]
[405811183,1771331438786,-151.0,0.0001,2]
[405811184,1771331438795,-151.0,0.0001,2]
[405811185,1771331438805,-151.0,0.0001,2]
[405811186,1771331438815,-151.0,0.0001,2]
[405811187,1771331438824,-151.0,0.0001,2]
[405811188,1771331438834,-151.0,0.0001,2]
[405811189,1771331438844,-151.0,0.0001,2]
[405811190,1771331438854,-151.0,0.0001,2]
[405811191,1771331438863,-151.0,0.0001,2]
[405811192,1771331438873,-151.0,0.0001,2]
[405811193,1771331438882,-151.0,0.0001,2]
[405811194,1771331438892,-151.0,0.0001,2]
[405811195,1771331438901,-151.0,0.0001,2]
[405811196,1771331438911,-151.0,0.0001,2]
[405811197,1771331438921,-151.0,0.0001,2]
[405811198,1771331438931,-151.0,0.0001,2]
[405811199,1771331438940,-151.0,0.0001,2]
[405811200,1771331438950,-665.75189293,0.0001,2]
[405811201,1771331438960,-151.0,0.00010023,4]
[405811202,1771331438969,-4609.0,0.00010274,2]
[405811203,1771331438979,-18755.78997856,0.00010296,2]
[405811204,1771331438988,-1500.0,0.00010552,2]
[405811205,1771331438998,-665.75189293,0.0001089,2]
[405811206,1771331439007,-6145.04167102,0.000109,2]
[405811207,1771331439017,-6145.04167097,0.000109,2]
[405811208,1771331439027,-6145.04167097,0.000109,2]
[405811209,1771331439037,-6034.81891893,0.00011,2]
[405811210,1771331439047,-5921.3128053,0.00011099,2]
[405811211,1771331439056,-5921.31280523,0.00011099,2]
[405811212,1771331439065,-5921.31280523,0.00011099,2]
[405811213,1771331439075,-5921.31280523,0.00011099,2]
[405811214,1771331439084,-1783.55639832,0.00011099,2]
[405811215,1771331439094,-1783.5563983,0.00011099,2]
[405811216,1771331439103,-1783.5563983,0.00011099,2]
[405811217,1771331439113,-1783.5563983,0.00011099,2]
[405811218,1771331439122,-6453.0,0.00011301,2]
[405811219,1771331439132,-1873.720256,0.00011606,2]
[405811220,1771331439141,-6145.04167097,0.00011696,2]
[405811221,1771331439151,-5921.31280523,0.00011868,2]
[405811222,1771331439160,-1783.5563983,0.00011868,2]
[405811223,1771331439170,-150.0,0.00011933,2]
[405811224,1771331439179,-10000.7247746,0.00012,5]
[405811225,1771331439189,-3403.0,0.00012431,2]
[405811226,1771331439198,-8326.4100907,0.00012472,2]
[405811227,1771331439207,-10040.43634857,0.00012472,2]
[405811228,1771331439216,-2791.21,0.00012546,2]
[405811229,1771331439226,-2791.21,0.00012662,2]